Cogmind - Beta 15 @@@ ROGUE MODE // 2025.09.20 @ 15:02:42 Player: Blue Result: Destroyed by G-34 Mercenary with Small Laser Performance ------------- Evolutions (0) 0 Regions Visited (2) 400 Robots Destroyed (28) 140 Value Destroyed (681) 681 Prototype IDs (2) 40 Alien Tech Used (0) 0 Bonus (0) 0 TOTAL SCORE: 1261 Bonus ------- None Cogmind --------- Core Integrity 0/250 Matter 270/300 Energy 100/100 System Corruption 1% Temperature Cool (76) Movement Core (750) Ox14 Location -10/Mines Parts ------- > --- POWER (1) -------- (None) > --- PROPULSION (2) --- (None) > --- UTILITY (2) ------ High-capacity Storage Unit Improved Terrain Scanner > --- WEAPON (2) ------- Beam Cannon > --- INVENTORY (20) --- Aluminum Leg Aluminum Leg Small Storage Unit Large Matter Pod (150) Beam Cannon Beam Cannon Grenade Launcher Rocket Launcher Peak State ------------ > --- POWER ------------ Light Ion Engine > --- PROPULSION ------- Aluminum Leg Aluminum Leg > --- UTILITY ---------- High-capacity Storage Unit Improved Terrain Scanner > --- WEAPON ----------- Light Cannon Rocket Launcher > --- INVENTORY -------- Aluminum Leg Aluminum Leg Aluminum Leg Small Storage Unit Large Matter Pod Beam Cannon Beam Cannon Beam Cannon Grenade Launcher Grenade Launcher [Rating: 11] Favorites ----------- Power Light Ion Engine Engine Light Ion Engine Propulsion Aluminum Leg Leg Aluminum Leg Utility High-capacity Storage Unit Device Improved Terrain Scanner Storage High-capacity Storage Unit Hackware Hacking Suite Weapon Light Cannon Energy Cannon Beam Cannon Ballistic Gun Light Assault Rifle Ballistic Cannon Light Cannon Launcher Grenade Launcher Build | -11 -10 -10 ------- Run | Yrd Mat Min Slots Evolved . | . . . Power . | . . . Propulsion . | . . . Utility . | . . . Weapon . | . . . Parts Attached 21 | 6 4 11 Power 3 | 1 . 2 Engine 3 | 1 . 2 Core . | . . . Reactor . | . . . Propulsion 5 | 2 . 3 Treads . | . . . Leg 5 | 2 . 3 Wheel . | . . . Hover . | . . . Flight . | . . . Utility 4 | 1 2 1 Device 1 | . . 1 Storage 2 | 1 1 . Processor . | . . . Hackware 1 | . 1 . Protection . | . . . Artifact . | . . . Weapon 9 | 2 2 5 Energy Gun . | . . . Energy Cannon 3 | . 1 2 Ballistic Gun 2 | 2 . . Ballistic Cannon 1 | . 1 . Launcher 3 | . . 3 Special Weapon . | . . . Impact Weapon . | . . . Slashing Weapon . | . . . Piercing Weapon . | . . . Special Melee Weapon . | . . . Unidentified Prototypes . | . . . Parts Lost 9 | . . 9 Power 3 | . . 3 Propulsion 3 | . . 3 Utility 1 | . . 1 Weapon 2 | . . 2 Highest Loss Streak 5 | . . 5 To Critical Strikes . | . . . Average Backups 7 | . 6 8 Power . | . 1 . Propulsion 1 | . . 1 Utility 1 | . 1 2 Weapon 3 | . 2 4 Tool/Special . | . . . Unused Backups 2 | . . 2 Power . | . . . Propulsion 1 | . . 1 Utility 1 | . . 1 Weapon . | . . . Tool/Special . | . . . Average Slot Usage (%) 99 | . 99 99 Engine 13 | . 14 13 Leg 27 | . 28 27 Device 1 | . . 2 Storage 14 | . 14 14 Hackware 12 | . 13 11 Energy Cannon 8 | . 7 9 Ballistic Gun 3 | . 11 . Ballistic Cannon 11 | . 9 12 Launcher 4 | . . 5 Peak Build Rating 11 | 6 9 11 Average Rating 9 | 4 8 9 On Entrance 5 | . 6 9 Naked Turns . | . . . Heaviest Build 52 | 10 49 52 Greatest Support 20 | 20 20 20 Greatest Overweight (x) 14 | . 2 14 Average Overweight (x) 1 | . 1 2 Largest Inventory Capacity 20 | 8 20 20 Average Capacity 19 | 6 19 20 Most Carried 10 | 1 8 10 Average Carried 7 | . 6 8 Final Capacity 20 | 8 20 20 Final Carried 8 | 1 8 8 Class Distribution -------------------- 94% | Mutant 5% | Scavenger-Mutant Dominant Class ---------------- Mutant | -10/Materials Mutant | -10/Mines Resources | -11 -10 -10 ----------- Run | Yrd Mat Min Matter Collected 760 | 260 192 308 Remotely . | . . . Salvage Created 622 | . . 622 Parts 54 | . . 54 Haulers Intercepted . | . . . Recyclers Shooed . | . . . Parts Field Recycled . | . . . Retrieved Matter . | . . . Parts Self-Destructed . | . . . Prevented . | . . . Kills | -11 -10 -10 ------- Run | Yrd Mat Min Combat Hostiles Destroyed 22 | . . 22 Cannons 15 | . . 15 AOE 7 | . . 7 Classes Destroyed 4 | . . 4 Tunneler 5 | . . 5 Recycler 1 | . . 1 Swarmer 6 | . . 6 Grunt 16 | . . 16 Best Kill Streak 5 | . . 5 Combat Bots Only 4 | . . 4 Max Kills in Single Turn 2 | . . 2 Gunslinging . | . . . Exploded 2 | . . 2 Melee . | . . . Uniques/NPCs Destroyed . | . . . Combat | -11 -10 -10 -------- Run | Yrd Mat Min Hostile Shots Fired 115 | . . 115 Missed 27 | . . 27 Hits 88 | . . 88 Projectile 88 | . . 88 Damage Taken 1144 | . . 1144 Core 257 | . . 257 Absorbed by Shields . | . . . Core Remaining (%) 100 | 100 . . Volleys Fired 51 | . 1 50 Largest 2 | . 2 2 Hottest 120 | . 40 120 Shots Fired 85 | . 2 83 Gun 2 | . 2 . Cannon 72 | . . 72 Launcher 11 | . . 11 Special . | . . . Kinetic 33 | . 2 31 Thermal 41 | . . 41 Explosive 11 | . . 11 Electromagnetic . | . . . Robot Hit Streak 6 | . 1 6 Robot Miss Streak 6 | . 1 6 Penetration Max . | . . . Secondary Targets . | . . . Shots Hit Robots 44 | . 1 43 Core Hits 33 | . . 33 Critical Kills . | . . . Critical Parts Destroyed . | . . . Critical Strikes 3 | . . 3 Blast 3 | . . 3 Melee Attacks . | . . . Impact . | . . . Slashing . | . . . Piercing . | . . . Sneak Attacks . | . . . Combat Hostiles . | . . . Follow-up Attacks . | . . . Damage Inflicted 1680 | . 9 1671 Guns 9 | . 9 . Cannons 722 | . . 722 Explosions 942 | . . 942 Melee . | . . . Ramming 7 | . . 7 Kinetic 347 | . 9 338 Thermal 487 | . . 487 Explosive 839 | . . 839 Electromagnetic . | . . . Impact . | . . . Slashing . | . . . Piercing . | . . . Highest Corruption 1 | . . 1 Average Corruption 1 | . . 1 Corruption Purged . | . . . Corruption Blocked . | . . . Effects 6 | . . 6 Message Errors 2 | . . 2 Heat Flow Errors 2 | . . 2 Energy Discharges 1 | . . 1 Data Loss (major) 1 | . . 1 Overload Shots . | . . . Overflow Damage 57 | . . 57 Projectiles . | . . . Explosions 57 | . . 57 Melee . | . . . Knockbacks 3 | . . 3 Impact . | . . . Kinetic 3 | . . 3 Secondary . | . . . Self-Inflicted Damage 72 | . . 72 Shots 2 | . . 2 Rammed . | . . . Targets Rammed 4 | . . 4 Kicked 4 | . . 4 Crushed . | . . . Highest Temperature 330 | . . 330 Average Temperature 89 | . . 89 Received Heat Transfer 552 | . . 552 Siege Activations . | . . . Martial Activations . | . . . Shielding Activations . | . . . Robots Disrupted . | . . . Combat Hostiles . | . . . Robots Corrupted . | . . . Combat Hostiles . | . . . Parts Fried . | . . . Impact Corruptions . | . . . Robots Melted . | . . . Combat Hostiles . | . . . Parts Melted 1 | . . 1 Heat Transferred 964 | . . 964 Parts Sabotaged . | . . . Parts Stolen . | . . . Parts Stripped . | . . . Power Chain Reactions . | . . . Alert | -11 -10 -10 ------- Run | Yrd Mat Min Maximum Alert Level 1 | . . 1 Low Security (%) 99 | 100 100 99 Level 1 . | . . . Level 2 . | . . . Level 3 . | . . . Level 4 . | . . . Level 5 . | . . . High Security . | . . . Max Security . | . . . Peak Influence 235 | . 10 235 Initial . | . . . Average 35 | . . 53 Influence Increases 686 | . 10 676 Destroy 0b10 Robot/C 440 | . . 440 Destroy 0b10 Robot/NC 30 | . . 30 Destroy Leader 40 | . . 40 Successful Hack 10 | . 10 . Disable Machine 15 | . . 15 Destroy Structure 76 | . . 76 Lose Combat Pursuer 75 | . . 75 Influence Decreases 494 | . 10 484 Time Decay 404 | . 10 394 Lost Part 90 | . . 90 Squads Dispatched 2 | . 2 . Investigation 2 | . 2 . Extermination . | . . . Reinforcement . | . . . Assault . | . . . Garrison . | . . . Intercept . | . . . Searches Triggered . | . . . Construction Impeded . | . . . Haulers Reinforced . | . . . Active Scanning Responses . | . . . Cargo Convoy Interrupts . | . . . Stealth | -11 -10 -10 --------- Run | Yrd Mat Min Distress Signals 2 | . . 2 Communications Jammed . | . . . Distress Signals . | . . . Times Spotted 31 | . 1 30 Peak Tracking Total 5 | . 1 5 Tactical Retreats 5 | . . 5 Traps | -11 -10 -10 ------- Run | Yrd Mat Min Traps Triggered . | . . . Indirectly . | . . . Trap Hack Attempts . | . . . Triggered . | . . . Disarmed . | . . . Reprogrammed . | . . . Reused . | . . . Traps Extracted . | . . . Installed . | . . . Triggered . | . . . Machines | -11 -10 -10 ---------- Run | Yrd Mat Min Machines Disabled 1 | . . 1 Max in Single Turn 1 | . . 1 Machines Repaired . | . . . Machines Dismantled . | . . . Machines Sabotaged . | . . . Overloaded Fab Kills . | . . . Hacking | -11 -10 -10 --------- Run | Yrd Mat Min Machines Accessed 2 | . 2 . Terminals 2 | . 2 . Fabricators . | . . . Repair Stations . | . . . Recycling Units . | . . . Scanalyzers . | . . . Garrison Access . | . . . Total Hacks 5 | . 5 . Successful 4 | . 4 . Failed 1 | . 1 . Catastrophic . | . . . Database Lockouts . | . . . Manual . | . . . Terminals 5 | . 5 . Fabricators . | . . . Repair Stations . | . . . Recycling Units . | . . . Scanalyzers . | . . . Garrison Access . | . . . Terminal Hacks 4 | . 4 . Record 1 | . 1 . Prototype ID Bank 1 | . 1 . Branch Access Points 1 | . 1 . Hauler Manifests 1 | . 1 . Fabricator Hacks . | . . . Repair Station Hacks . | . . . Recycling Unit Hacks . | . . . Scanalyzer . | . . . Garrison Access Hacks . | . . . Unauthorized Hacks . | . . . Terminals . | . . . Fabricators . | . . . Repair Stations . | . . . Recycling Units . | . . . Scanalyzers . | . . . Garrison Access . | . . . Data Cores Recovered 1 | . 1 . Used . | . . . Hacking Detections 1 | . 1 . Full Trace Events . | . . . Feedback Events . | . . . Feedback Blocked . | . . . Robot Schematics Acquired . | . . . Robots Built . | . . . Authchips . | . . . Time . | . . . Total Robot Build Rating . | . . . Part Schematics Acquired . | . . . Parts Built . | . . . Authchips . | . . . Time . | . . . Total Part Build Rating . | . . . Parts Repaired . | . . . Time . | . . . Parts Recycled . | . . . Recycled Matter . | . . . Retrieved Matter . | . . . Retrieved Components . | . . . Parts Scanalyzed . | . . . Part Schematics Acquired . | . . . Parts Damaged . | . . . Bothacking | -11 -10 -10 ------------ Run | Yrd Mat Min Used RIF Installer . | . . . Robots Hacked . | . . . Non-combat . | . . . Combat . | . . . Robot Hacks Applied . | . . . Relay Couplers Released . | . . . Fabnet Peak Effective % . | . . . Robots Rewired . | . . . Allies Hacked . | . . . Hacks Repelled . | . . . Allies | -11 -10 -10 -------- Run | Yrd Mat Min Total Allies . | . . . Largest Group . | . . . Highest-Rated Group . | . . . Highest-Rated Ally . | . . . Total Orders . | . . . Ally Attacks . | . . . Total Damage . | . . . Kills . | . . . Allies Corrupted . | . . . Allies Melted . | . . . Intel | -11 -10 -10 ------- Run | Yrd Mat Min Active Infowar (turns) 303 | . . 303 Terrain 303 | . . 303 Robot Analysis Total . | . . . Derelict Logs Recovered 1 | . . 1 Drone Launches . | . . . Drone Recoveries . | . . . Exploration | -11 -10 -10 ------------- Run | Yrd Mat Min Turns Passed 2639 | 64 829 1746 Spaces Moved 890 | 49 319 522 Core 7 | 6 . 1 Treads . | . . . Legs 883 | 43 319 521 Wheels . | . . . Hover . | . . . Flight . | . . . Fastest Speed 50 | 50 120 260 Average Speed 251 | 111 256 261 Slowest Speed 750 | 120 260 750 Overloaded Moves . | . . . Propulsion Burnouts . | . . . Robots Hopped . | . . . Potential Cave-ins . | . . . Cave-ins Triggered . | . . . Exploration Rate (%) 48 | 3 51 90 Regions Visited 2 Branch Regions 1 Pre-discovered Areas . | . . . Known Exits Taken 1 | . 1 . Unknown Exits Taken 1 | 1 . . Scrap Searched 1 | . . 1 Spaces Dug . | . . . Terrain Destroyed 94 | . . 94 Melee . | . . . Projectile . | . . . AOE 94 | . . 94 Terrain Rammed . | . . . Walls Destroyed . | . . . Machines Disabled . | . . . Actions | -11 -10 -10 --------- Run | Yrd Mat Min Total 1196 | 55 329 812 Wait 220 | . . 220 Move 888 | 48 318 522 Hop . | . . . Pick Up 8 | 1 6 1 Fast Attach 9 | 6 1 2 Attach 3 | . . 3 Detach . | . . . Swap 13 | . 3 10 Drop . | . . . Fire 51 | . 1 50 Melee . | . . . Ram . | . . . Kick 4 | . . 4 Crush . | . . . Escape Stasis . | . . . Rewire . | . . . Trap . | . . . Miscellaneous . | . . . Route ------- -11/Scrapyard -10/Materials (discovered 3 exits: [*Mat] / *Min x2) -10/Mines (discovered 1 exit: [*Mat]) History --------- Turn | Location | Event 7 | -11/Scrapyard | Discovered new exit (range 14) 65 | -11/Scrapyard | Entered Materials 66 | -10/Materials | Met a group of wandering Federalists 310 | -10/Materials | Build established: Mutant 363 | -10/Materials | Identified exit to Mines 468 | -10/Materials | Discovered new exit (range 16) 894 | -10/Materials | Entered Mines 1360 | -10/Mines | Learned Materials trap positions 1375 | -10/Mines | Received a Rocket Launcher from a helpful Derelict 1864 | -10/Mines | Excavation squad dispatched 1864 | -10/Mines | A large section of the Mines collapsed 2114 | -10/Mines | Excavation squad dispatched 2364 | -10/Mines | Excavation squad dispatched 2487 | -10/Mines | Core integrity fell below 50% 2614 | -10/Mines | Excavation squad dispatched 2627 | -10/Mines | Discovered new exit (range 9) 2635 | -10/Mines | Core integrity fell below 20% 2640 | -10/Mines | Destroyed by G-34 Mercenary with Small Laser Last Messages --------------- 02506_ Acquired 26 matter. 02507_ K-01 Serf collects debris. 02514_ G-34 Mercenary destroyed. 02517_ K-01 Serf collects debris. 02544_ System corrupted: Heat flow error (+206). 02545_ K-01 Serf collects debris. 02613_ Aluminum Leg destroyed. 02614_ ALERT: Derelict activity in mines confirmed. Dispatching additional escorted excavation squad. 02618_ T-07 Excavator destroyed. 02619_ T-07 Excavator sends out distress signal. 02621_ G-34 Mercenary destroyed. 02621_ T-07 Excavator destroyed. 02624_ G-34 Mercenary destroyed. 02626_ Grenade Launcher destroyed. 02627_ EXIT=FOUND 02628_ Ion Engine destroyed. 02630_ The unstable cave ceiling collapses. 02631_ Aluminum Leg destroyed. Map ----- +----------------------------------------------------+ | ??????????????????????????????????????? | | ??????????????????????????????????????? | | ????????????????????????????#?????????? | | ????????#??#???? ?????????????????????? | | ??????????????????????????????????????? | | ??????????????????????????????????????? | | ?????? ???????????????????????????????? | | ??????????????????????????????#???????? | | ??????????????????????????????????????? | | ?????????????????????????#????????????? | | ??????????????????????????????????????? | | ???????? ?????????????????????????????? | | ?????????????????######### """???????? | | ??????? ??????#??# """ ?????? | | ?????????????????# ## #### #????? | | ????#????????????# ## #???? ??????????# | | ??????????#????#?# ## ###?????????????? | | ??????????# ?????# ## ##?????####???? | | ????# ##### ###### # #??#### ###?? | | ????# t #??# # ##? | | ???????#?#### ###### #? | | ????????????#gg#### ###### #? | | #???????????# #?# #### % ## | | ????????????# #?# ## %![=* | | ???????????## #### !%=! | | ?????????? # g@ #?## % = | | ?????? = * #??## ## | | ?????# =%=g![ ##?## #### | | ?????# < !%t% #???## ##?###% | | ?????## #!=[ ???### ##????#### | | ??????#### #????## #????????? | | ?????????# # ##??#?## #??????#?? | | ???#?????## ###??????# #???????? | | ???#????#?######????#???## #???????? | | ?????#???????????????????## ##??##???? | | ?????????????#????#???????####???#????# | | ???????????????????????????###???????#? | | ??????????????#???#??????????????????## | | ?????????????????#######??????????????? | | ????????????????## ##########?#???? | | ????????????????# #?????? | | ???????????????## ###### #?????? | | ???????####???## #????# #?????? | | ??????## ##?## ##????# #?????? | | ??????# ### ### #?????# #?????? | | ??????# ##?#!!#?????# #?????? | | ??????## ###??# %#?????# #?????? | | ??????## ##????# #?????# #####?? | | ?????## ##??#### #?????# ##? | | ????## ##???# #?????# #? | +----------------------------------------------------+ Best States ------------- Heat Dissipation 25 Energy Generation 10 Energy Capacity 250 Matter Stores 300 Matter Capacity 300 Sight Range 16 Terrain Scan Range 16 Terrain Scan Density 10 Evasion (%) 55 Offensive Hacking 10 Item Schematics ----------------- None Robot Schematics ------------------ None Fabricated ------------ Nothing Repaired ---------- Nothing Alien Tech Used ----------------- None Achievements -------------- None Challenges ------------ None Game ------ Seed EnhancedPlasmaStorm Manual? 0 Play Time 00:13:39 Cumulative 50.4 hours Start 2025.09.20 @ 14:49:33 End 2025.09.20 @ 15:02:42 Sessions 1 Manual Loads 0 Difficulty Rogue Special Mode None Game No. 34 Rogue 34 Adventurer 0 Explorer 0 Win Type - Total 0 Types 0/0/0/0/0/0/0/0/0/0 Lore% 13 Gallery% 34 Achievement% 33 Wizard Run 0 Options --------- Layout 1 ASCII 0 Keyboard 1 Movement Arrows Keybinds 0 Fullscreen 1 Font 24/Smallcaps Map View 50x35 Zoom Use 0% Tactical HUD 1 Map Filters NONE Filters NONE Steam 1 RUN: c99c3511-e95c-4eab-b387-762540104aa9